Cogmind - Beta 16.1 @@@ ROGUE MODE // 2026.06.18 @ 22:20:45 Player: Megaknight51 Result: Destroyed by D-53 Grenadier with Mini Grenade Launcher Performance ------------- Evolutions (0) 0 Regions Visited (2) 400 Robots Destroyed (6) 30 Value Destroyed (108) 108 Prototype IDs (0) 0 Alien Tech Used (0) 0 Bonus (21) 21 TOTAL SCORE: 559 Bonus ------- Follower Combat Kills 21 Cogmind --------- Core Integrity 0/250 Matter 154/300 Energy 24/100 System Corruption 0% Temperature Cool (0) Movement Core (350) Ox6 Location -10/Mines Parts ------- > --- POWER (1) -------- (None) > --- PROPULSION (2) --- (None) > --- UTILITY (2) ------ Large Storage Unit > --- WEAPON (2) ------- (None) > --- INVENTORY (15) --- Wheel Wheel Wheel High-capacity Matter Pod (177) High-capacity Matter Pod (0) High-capacity Matter Pod (0) Seismic Detector Light EM Pulse Cannon Mining Laser Peak State ------------ > --- POWER ------------ Ion Engine > --- PROPULSION ------- Wheel Compact Wheel > --- UTILITY ---------- Small Storage Unit Seismic Detector > --- WEAPON ----------- Light EM Pulse Cannon Light EM Pulse Cannon > --- INVENTORY -------- Wheel Wheel Wheel Seismic Detector Light EM Pulse Cannon Rocket Launcher Rocket Launcher Mining Laser [Rating: 10] Favorites ----------- Power Ion Engine Engine Ion Engine Propulsion Compact Wheel Wheel Compact Wheel Utility Seismic Detector Device Seismic Detector Storage Large Storage Unit Weapon Light EM Pulse Cannon Energy Cannon Light EM Pulse Cannon Ballistic Gun Light Assault Rifle Launcher Rocket Launcher Build | -11 -10 -10 ------- Run | Yrd Mat Min Slots Evolved . | . . . Power . | . . . Propulsion . | . . . Utility . | . . . Weapon . | . . . Parts Attached 14 | 7 3 4 Power 1 | 1 . . Engine 1 | 1 . . Core . | . . . Reactor . | . . . Propulsion 2 | 2 . . Treads . | . . . Leg . | . . . Wheel 2 | 2 . . Hover . | . . . Flight . | . . . Utility 3 | 2 1 . Device 1 | 1 . . Storage 2 | 1 1 . Processor . | . . . Hackware . | . . . Protection . | . . . Artifact . | . . . Weapon 8 | 2 2 4 Energy Gun . | . . . Energy Cannon 4 | . 2 2 Ballistic Gun 2 | 2 . . Ballistic Cannon . | . . . Launcher 2 | . . 2 Special Weapon . | . . . Impact Weapon . | . . . Slashing Weapon . | . . . Piercing Weapon . | . . . Special Melee Weapon . | . . . Unidentified Prototypes . | . . . Parts Lost 9 | . . 9 Power 1 | . . 1 Propulsion 2 | . . 2 Utility 1 | . . 1 Weapon 5 | . . 5 Highest Loss Streak 9 | . . 9 To Critical Strikes . | . . . Average Backups 8 | 1 8 11 Power . | . . . Propulsion 2 | 1 2 3 Utility 2 | . 1 4 Weapon 3 | . 3 4 Tool/Special . | . . . Unused Backups 9 | . 1 8 Power . | . . . Propulsion 4 | . 1 3 Utility 4 | . . 4 Weapon 1 | . . 1 Tool/Special . | . . . Average Slot Usage (%) 98 | . 100 96 Engine 13 | . 14 13 Wheel 27 | . 28 27 Device 13 | . 14 13 Storage 14 | . 14 14 Energy Cannon 22 | . 20 24 Ballistic Gun 2 | . 7 . Launcher 1 | . . 2 Peak Build Rating 10 | 7 10 10 Average Rating 8 | 5 9 9 On Entrance 5 | . 7 10 Avg Prop Armor Cover (%) . | . . . Naked Turns . | . . . Heaviest Build 34 | 14 34 34 Greatest Support 26 | 26 26 26 Greatest Overweight (x) 6 | . 1 6 Average Overweight (x) . | . . 1 Largest Inventory Capacity 15 | 8 15 15 Average Capacity 12 | 7 10 15 Most Carried 12 | 5 12 12 Average Carried 8 | 1 8 11 Final Capacity 15 | 8 15 15 Final Carried 12 | 5 12 9 Class Distribution -------------------- 100% | Mutant Dominant Class ---------------- Mutant | -10/Materials Mutant | -10/Mines Resources | -11 -10 -10 ----------- Run | Yrd Mat Min Matter Collected 525 | 306 . 219 Remotely . | . . . Salvage Created 275 | 133 . 142 Parts 14 | 11 . 3 Haulers Intercepted . | . . . Recyclers Shooed . | . . . Parts Field Recycled . | . . . Retrieved Matter . | . . . Parts Self-Destructed . | . . . Prevented . | . . . Parts Restored . | . . . Kills | -11 -10 -10 ------- Run | Yrd Mat Min Combat Hostiles Destroyed 13 | . . 13 Cannons 1 | . . 1 AOE 11 | . . 11 Classes Destroyed 4 | 2 . 2 Tunneler 3 | 3 . . Recycler 1 | 1 . . Grunt 2 | . . 2 Assembled 11 | . . 11 Best Kill Streak 11 | 2 . 11 Combat Bots Only 11 | . . 11 Max Kills in Single Turn 4 | 1 . 4 Gunslinging . | . . . Exploded 4 | . . 4 Melee . | . . . Uniques/NPCs Destroyed . | . . . Combat | -11 -10 -10 -------- Run | Yrd Mat Min Hostile Shots Fired 36 | . . 36 Missed 7 | . . 7 Hits 29 | . . 29 Projectile 29 | . . 29 AOE 14 | . . 14 Part Disruptions 1 | . . 1 Damage Taken 857 | . . 857 Core 254 | . . 254 Absorbed by Shields . | . . . Core Remaining (%) 100 | 100 . . Volleys Fired 25 | 9 . 16 Largest 2 | 2 . 2 Hottest 112 | 40 . 112 Shots Fired 49 | 18 . 31 Gun 18 | 18 . . Cannon 18 | . . 18 Launcher 13 | . . 13 Special . | . . . Kinetic 18 | 18 . . Thermal . | . . . Explosive 13 | . . 13 Electromagnetic 18 | . . 18 Robot Hit Streak 7 | 4 . 7 Robot Miss Streak 2 | 2 . 2 Penetration Max . | . . . Secondary Targets . | . . . Shots Hit Robots 27 | 11 . 16 Core Hits 34 | 6 . 28 Critical Kills . | . . . Critical Parts Destroyed . | . . . Critical Strikes . | . . . Melee Attacks . | . . . Impact . | . . . Slashing . | . . . Piercing . | . . . Sneak Attacks . | . . . Combat Hostiles . | . . . Follow-up Attacks . | . . . Damage Inflicted 1224 | 117 . 1107 Guns 117 | 117 . . Cannons 292 | . . 292 Explosions 815 | . . 815 Melee . | . . . Ramming . | . . . Kinetic 117 | 117 . . Thermal . | . . . Explosive 815 | . . 815 Electromagnetic 292 | . . 292 Impact . | . . . Slashing . | . . . Piercing . | . . . Highest Corruption . | . . . Average Corruption . | . . . Corruption Purged . | . . . Corruption Blocked . | . . . Overload Shots . | . . . Overflow Damage 52 | . . 52 Projectiles 14 | . . 14 Explosions 38 | . . 38 Melee . | . . . Knockbacks . | . . . Impact . | . . . Kinetic . | . . . Secondary . | . . . Self-Inflicted Damage 89 | . . 89 Shots 3 | . . 3 Rammed . | . . . Targets Rammed . | . . . Kicked . | . . . Crushed . | . . . Highest Temperature 196 | . . 196 Average Temperature 69 | . . 69 Received Heat Transfer 113 | . . 113 Siege Activations . | . . . Martial Activations . | . . . Shielding Activations . | . . . Robots Disrupted . | . . . Combat Hostiles . | . . . Robots Corrupted 1 | . . 1 Combat Hostiles 1 | . . 1 Parts Fried 2 | . . 2 Impact Corruptions . | . . . Robots Melted . | . . . Combat Hostiles . | . . . Parts Melted . | . . . Heat Transferred . | . . . Parts Sabotaged . | . . . Parts Stolen . | . . . Parts Stripped . | . . . Power Chain Reactions . | . . . Alert | -11 -10 -10 ------- Run | Yrd Mat Min Maximum Alert Level . | . . . Low Security (%) 100 | 100 100 100 Level 1 . | . . . Level 2 . | . . . Level 3 . | . . . Level 4 . | . . . Level 5 . | . . . High Security . | . . . Max Security . | . . . Peak Influence 120 | 10 . 120 Initial . | . . . Average 26 | 2 . 53 Influence Increases 250 | 20 . 230 Destroy 0b10 Robot/C 100 | . . 100 Destroy 0b10 Robot/NC 20 | 20 . . Destroy Leader 20 | . . 20 Allied During Kill 10 | . . 10 Destroy Structure 70 | . . 70 Lose Combat Pursuer 30 | . . 30 Influence Decreases 250 | 20 . 230 Time Decay 150 | 20 . 130 Lost Part 60 | . . 60 Lost Ally 40 | . . 40 Squads Dispatched . | . . . Investigation . | . . . Extermination . | . . . Reinforcement . | . . . Assault . | . . . Garrison . | . . . Intercept . | . . . Searches Triggered . | . . . Construction Impeded . | . . . Haulers Reinforced . | . . . Active Scanning Responses . | . . . Cargo Convoy Interrupts . | . . . Stealth | -11 -10 -10 --------- Run | Yrd Mat Min Distress Signals . | . . . Communications Jammed . | . . . Distress Signals . | . . . Times Spotted 27 | . 1 26 Peak Tracking Total 17 | . 1 17 Tactical Retreats 2 | . . 2 Traps | -11 -10 -10 ------- Run | Yrd Mat Min Traps Triggered . | . . . Indirectly . | . . . Trap Hack Attempts . | . . . Triggered . | . . . Disarmed . | . . . Reprogrammed . | . . . Reused . | . . . Traps Extracted . | . . . Installed . | . . . Triggered . | . . . Machines | -11 -10 -10 ---------- Run | Yrd Mat Min Machines Disabled . | . . . Max in Single Turn . | . . . Machines Repaired . | . . . Machines Dismantled . | . . . Machines Sabotaged . | . . . Overloaded Fab Kills . | . . . Hacking | -11 -10 -10 --------- Run | Yrd Mat Min Machines Accessed 1 | . 1 . Terminals 1 | . 1 . Fabricators . | . . . Repair Stations . | . . . Recycling Units . | . . . Scanalyzers . | . . . Garrison Access . | . . . Total Hacks 1 | . 1 . Successful . | . . . Failed 1 | . 1 . Catastrophic 1 | . 1 . Database Lockouts . | . . . Manual 1 | . 1 . Terminals 1 | . 1 . Fabricators . | . . . Repair Stations . | . . . Recycling Units . | . . . Scanalyzers . | . . . Garrison Access . | . . . Terminal Hacks . | . . . Fabricator Hacks . | . . . Repair Station Hacks . | . . . Recycling Unit Hacks . | . . . Scanalyzer . | . . . Garrison Access Hacks . | . . . Unauthorized Hacks . | . . . Terminals . | . . . Fabricators . | . . . Repair Stations . | . . . Recycling Units . | . . . Scanalyzers . | . . . Garrison Access . | . . . Data Cores Recovered . | . . . Used . | . . . Hacking Detections 1 | . 1 . Full Trace Events . | . . . Feedback Events . | . . . Feedback Blocked . | . . . Robot Schematics Acquired . | . . . Robots Built . | . . . Authchips . | . . . Time . | . . . Total Robot Build Rating . | . . . Part Schematics Acquired . | . . . Parts Built . | . . . Authchips . | . . . Time . | . . . Total Part Build Rating . | . . . Part Studies Acquired . | . . . Parts Repaired . | . . . Time . | . . . Parts Recycled . | . . . Recycled Matter . | . . . Retrieved Matter . | . . . Retrieved Components . | . . . Parts Scanalyzed . | . . . Part Schematics Acquired . | . . . Parts Damaged . | . . . Bothacking | -11 -10 -10 ------------ Run | Yrd Mat Min Used RIF Installer . | . . . Robots Hacked . | . . . Non-combat . | . . . Combat . | . . . Robot Hacks Applied . | . . . Relay Couplers Released . | . . . Fabnet Peak Effective % . | . . . Robots Rewired . | . . . Allies Hacked . | . . . Hacks Repelled . | . . . Allies | -11 -10 -10 -------- Run | Yrd Mat Min Total Allies 3 | . . 3 Largest Group 3 | . . 3 Highest-Rated Group 40 | . . 40 Highest-Rated Ally 16 | . . 16 Total Orders . | . . . Ally Attacks 21 | . . 21 Total Damage 143 | . . 143 Kills 4 | . . 4 Allies Corrupted . | . . . Allies Melted . | . . . Intel | -11 -10 -10 ------- Run | Yrd Mat Min Active Infowar (turns) 538 | 57 197 284 Seismic 538 | 57 197 284 Robot Analysis Total . | . . . Derelict Logs Recovered 1 | . . 1 Drone Launches . | . . . Drone Recoveries . | . . . Exploration | -11 -10 -10 ------------- Run | Yrd Mat Min Turns Passed 617 | 116 197 304 Spaces Moved 496 | 85 194 217 Core 3 | 2 . 1 Treads . | . . . Legs . | . . . Wheels 493 | 83 194 216 Hover . | . . . Flight . | . . . Fastest Speed 50 | 50 90 105 Average Speed 98 | 89 94 106 Slowest Speed 350 | 100 105 350 Overloaded Moves . | . . . Propulsion Burnouts . | . . . Robots Hopped . | . . . Potential Cave-ins 1 | . . 1 Cave-ins Triggered . | . . . Exploration Rate (%) 23 | 4 22 43 Regions Visited 2 Branch Regions 1 Pre-discovered Areas 1 | . . 1 Known Exits Taken . | . . . Unknown Exits Taken 2 | 1 1 . Scrap Searched 1 | . . 1 Spaces Dug . | . . . Terrain Destroyed 134 | . . 134 Melee . | . . . Projectile . | . . . AOE 134 | . . 134 Terrain Rammed . | . . . Walls Destroyed . | . . . Machines Disabled . | . . . Actions | -11 -10 -10 --------- Run | Yrd Mat Min Total 571 | 105 207 259 Wait 21 | . . 21 Move 494 | 84 193 217 Hop . | . . . Pick Up 13 | 5 8 . Fast Attach 7 | 7 . . Attach 3 | . . 3 Detach . | . . . Swap 6 | . 4 2 Drop 2 | . 2 . Fire 25 | 9 . 16 Melee . | . . . Ram . | . . . Kick . | . . . Crush . | . . . Escape Stasis . | . . . Rewire . | . . . Trap . | . . . Miscellaneous . | . . . Route ------- -11/Scrapyard -10/Materials -10/Mines (discovered 1 exit: [*Mat]) History --------- Turn | Location | Event 7 | -11/Scrapyard | Discovered new exit (range 16) 117 | -11/Scrapyard | Entered Materials 144 | -10/Materials | Discovered new exit (range 12) 309 | -10/Materials | Build established: Mutant 314 | -10/Materials | Entered Mines 403 | -10/Mines | Learned location of Zion (-6) 415 | -10/Mines | Assisted by bots powering up and referring to "LRC-V3" 454 | -10/Mines | Discovered new exit (range 6) 549 | -10/Mines | Assembled infested the area 554 | -10/Mines | Assisted by a Guerilla fighting off Assembled 609 | -10/Mines | Core integrity fell below 50% 612 | -10/Mines | Core integrity fell below 20% 618 | -10/Mines | Destroyed by D-53 Grenadier with Mini Grenade Launcher Last Messages --------------- 00599_ as-30316 destroyed. 00601_ The unstable cave ceiling collapses. 00602_ Wheel destroyed. 00602_ Ion Engine destroyed. 00602_ Destroyed Asb. Hover Unit. 00602_ as-55087 destroyed. 00604_ The unstable cave ceiling collapses. 00604_ as-65748 destroyed. 00604_ Rocket Launcher destroyed. 00605_ The unstable cave ceiling collapses. 00607_ Com. Wheel destroyed. 00608_ The unstable cave ceiling collapses. 00608_ Lgt. EM Pulse Cannon destroyed. 00609_ The unstable cave ceiling collapses. 00609_ Rocket Launcher destroyed. 00611_ The unstable cave ceiling collapses. 00614_ Destroyed Shock Absorption System. 00615_ D-53 Grenadier misfires. 00616_ The unstable cave ceiling collapses. 00618_ Lgt. EM Pulse Cannon destroyed. Map ----- +----------------------------------------------------+ | ??????????????????????????????????? | | ??????????????????????????????????? | | ??????????????????????????????????? | | ??????????????????????????????????? | | ??????????????????????????????????? | | ??????????????????????????????????? | | ??????????????????????????????????? | | ??????????????????????????????????? | | ??????????????????????????????????? | | ??????????????????????????????????? | | ??????????????????????????????????? | | ??????????????????????????????????? | | ??????????????????????????????????? | | ??????????????????????????????????? | | ????????????????????????????????##? | | ????????????????????????????????# | | ??????????????????????????#?????# | | ???????????????????????? # ???## | | ????##?###?????????????? ### | | ???## ## ####????????? | | ??## ###?????? | | ?## ###???? | | ?# ###### | | ??# ## | | ?# < # #?# | | # @ #??# | | # #??# | | # d #?## ## | | # #### ### | | ## # ### | | #### ## | | # # ??# d | | #### # ??? # | | ???#??# ## # # # | | ??????# | | ??????# #### | | ??????## ##### # # # ???## | | ???????????????? ? ######?????# | | ?????????????????#???###??????????? | | ??????????????????????????????????? | | ??????????????????????????????????? | | ??????????????????????????????????? | | ??????????????????????????????????? | | | | | | | | | | | | | | | +----------------------------------------------------+ Best States ------------- Heat Dissipation 25 Energy Generation 10 Energy Capacity 250 Matter Stores 300 Matter Capacity 300 Sight Range 16 Terrain Scan Density 10 Evasion (%) 42 Item Schematics ----------------- None Robot Schematics ------------------ None Fabricated ------------ Nothing Repaired ---------- Nothing Studied --------- None Alien Tech Used ----------------- None Achievements -------------- None Challenges ------------ None Game ------ Seed AlloySchematicBank Manual? 0 Play Time 00:07:02 Cumulative 164.6 hours Start 2026.06.18 @ 22:16:25 End 2026.06.18 @ 22:20:45 Sessions 1 Manual Loads 0 Difficulty Rogue Special Mode None Game No. 305 Rogue 305 Adventurer 0 Explorer 0 Win Type - Total 4 Types 3/0/0/1/0/0/0/0/0/0 Lore% 67 Gallery% 48 Achievement% 45 Wizard Run 0 Options --------- Layout 0 ASCII 0 Keyboard 1 Movement Arrows Keybinds 0 Fullscreen 1 Font 18/Smallcaps Map View 76x50 Zoom Use 16% Tactical HUD 1 Map Filters NONE Filters NONE Steam 1 RUN: 931f86ac-64ca-4831-bce3-9568ce18977d